[Event "Late-Titled-Tuesday-Blitz-March-12-2024"]
[Site "Chess.com"]
[Date "2024.03.12"]
[Round "3"]
[White "KyronGriffith"]
[Black "ShahMatKanal"]
[Result "1/2-1/2"]
[WhiteElo "2682"]
[BlackElo "2500"]
[TimeControl "180+1"]
[EndTime "14:28:19 PDT"]
[Termination "Game drawn by repetition"]

1. e4 {[%clk 0:03:00.9]} 1... c6 {[%clk 0:02:50.7]} 2. d4 {[%clk 0:02:57.5]}
2... d5 {[%clk 0:02:42.5]} 3. e5 {[%clk 0:02:57.8]} 3... Bf5 {[%clk 0:02:39.5]}
4. h4 {[%clk 0:02:58]} 4... h5 {[%clk 0:02:38.1]} 5. Bd3 {[%clk 0:02:58]} 5...
Bxd3 {[%clk 0:02:37.5]} 6. Qxd3 {[%clk 0:02:58.9]} 6... e6 {[%clk 0:02:37.1]} 7.
Ne2 {[%clk 0:02:59.3]} 7... Ne7 {[%clk 0:02:33.8]} 8. Bg5 {[%clk 0:02:52.9]}
8... Qb6 {[%clk 0:02:29.2]} 9. Nd2 {[%clk 0:02:50.3]} 9... Nd7 {[%clk
0:02:19.1]} 10. O-O {[%clk 0:02:45.4]} 10... Nf5 {[%clk 0:02:11.5]} 11. b3
{[%clk 0:02:41.9]} 11... Bb4 {[%clk 0:02:01.3]} 12. c3 {[%clk 0:02:39.3]} 12...
Be7 {[%clk 0:01:55.1]} 13. Bxe7 {[%clk 0:02:37.8]} 13... Nxe7 {[%clk 0:01:50.1]}
14. c4 {[%clk 0:02:33.6]} 14... Nf5 {[%clk 0:01:38.2]} 15. Nf3 {[%clk
0:02:27.7]} 15... Qa6 {[%clk 0:01:24.8]} 16. Rfc1 {[%clk 0:02:16.7]} 16... g6
{[%clk 0:01:10.2]} 17. Nf4 {[%clk 0:02:07.7]} 17... O-O {[%clk 0:01:00.4]} 18.
g3 {[%clk 0:02:06.1]} 18... Kg7 {[%clk 0:00:57.6]} 19. Kg2 {[%clk 0:02:06.3]}
19... dxc4 {[%clk 0:00:44]} 20. bxc4 {[%clk 0:02:03.8]} 20... Rfd8 {[%clk
0:00:44.3]} 21. Qc3 {[%clk 0:01:41.1]} 21... Rac8 {[%clk 0:00:39.7]} 22. Rd1
{[%clk 0:01:33.5]} 22... b5 {[%clk 0:00:37]} 23. c5 {[%clk 0:01:28]} 23... Nf8
{[%clk 0:00:32.4]} 24. Ng5 {[%clk 0:01:26.7]} 24... Rd7 {[%clk 0:00:29.9]} 25.
Ne4 {[%clk 0:01:25.2]} 25... Rcd8 {[%clk 0:00:29.5]} 26. Nd6 {[%clk 0:01:25.7]}
26... Nh7 {[%clk 0:00:20.2]} 27. Rd2 {[%clk 0:01:25]} 27... Qa4 {[%clk
0:00:19.6]} 28. Rad1 {[%clk 0:01:22.5]} 28... a5 {[%clk 0:00:19.8]} 29. a3
{[%clk 0:01:19.4]} 29... Nxd6 {[%clk 0:00:19.8]} 30. exd6 {[%clk 0:01:14.4]}
30... b4 {[%clk 0:00:18.6]} 31. axb4 {[%clk 0:01:13.7]} 31... axb4 {[%clk
0:00:19.5]} 32. Qe3 {[%clk 0:01:09.7]} 32... Re8 {[%clk 0:00:15.3]} 33. Nd3
{[%clk 0:01:07.6]} 33... f6 {[%clk 0:00:12.3]} 34. Rb1 {[%clk 0:01:00.7]} 34...
Rb7 {[%clk 0:00:12.3]} 35. Rdb2 {[%clk 0:01:00.6]} 35... b3 {[%clk 0:00:12]} 36.
Nf4 {[%clk 0:00:54.4]} 36... e5 {[%clk 0:00:12]} 37. dxe5 {[%clk 0:00:54.8]}
37... Rxe5 {[%clk 0:00:12.5]} 38. Qc3 {[%clk 0:00:50.3]} 38... Qe4+ {[%clk
0:00:11.9]} 39. f3 {[%clk 0:00:50.2]} 39... Qf5 {[%clk 0:00:11.1]} 40. Rxb3
{[%clk 0:00:44]} 40... Rxb3 {[%clk 0:00:11.2]} 41. Rxb3 {[%clk 0:00:41.2]} 41...
Rxc5 {[%clk 0:00:11.3]} 42. Rb7+ {[%clk 0:00:36.1]} 42... Kh6 {[%clk 0:00:11.7]}
43. Qd3 {[%clk 0:00:24.6]} 43... Rc2+ {[%clk 0:00:11.2]} 44. Kf1 {[%clk
0:00:23.8]} 44... Qxd3+ {[%clk 0:00:10.4]} 45. Nxd3 {[%clk 0:00:24.1]} 45... Rd2
{[%clk 0:00:11.3]} 46. Rb3 {[%clk 0:00:22.7]} 46... Nf8 {[%clk 0:00:10.2]} 47.
Ke1 {[%clk 0:00:23.1]} 47... Rg2 {[%clk 0:00:08.9]} 48. Rc3 {[%clk 0:00:19.2]}
48... Rxg3 {[%clk 0:00:07.9]} 49. Kf2 {[%clk 0:00:19.8]} 49... Rh3 {[%clk
0:00:07.3]} 50. Rxc6 {[%clk 0:00:20.2]} 50... Rxh4 {[%clk 0:00:07.7]} 51. Ke3
{[%clk 0:00:19.4]} 51... Nd7 {[%clk 0:00:05.9]} 52. Rc7 {[%clk 0:00:19.1]} 52...
Nb6 {[%clk 0:00:05.8]} 53. Rb7 {[%clk 0:00:18.6]} 53... Nd5+ {[%clk 0:00:05.5]}
54. Kf2 {[%clk 0:00:19.1]} 54... Rd4 {[%clk 0:00:05.4]} 55. Nc5 {[%clk
0:00:19.6]} 55... Nf4 {[%clk 0:00:04.6]} 56. d7 {[%clk 0:00:19.7]} 56... g5
{[%clk 0:00:03.9]} 57. Rb6 {[%clk 0:00:18.3]} 57... Rd2+ {[%clk 0:00:03.8]} 58.
Ke1 {[%clk 0:00:18.9]} 58... Rd4 {[%clk 0:00:01.9]} 59. Rxf6+ {[%clk 0:00:18.4]}
59... Kg7 {[%clk 0:00:02.8]} 60. Rf5 {[%clk 0:00:18.4]} 60... Kg6 {[%clk
0:00:02.7]} 61. Re5 {[%clk 0:00:17.2]} 61... Nd3+ {[%clk 0:00:02.9]} 62. Nxd3
{[%clk 0:00:12.4]} 62... Rxd3 {[%clk 0:00:03.8]} 63. Re7 {[%clk 0:00:12.6]}
63... Kf6 {[%clk 0:00:04.3]} 64. Rh7 {[%clk 0:00:12.7]} 64... Kg6 {[%clk
0:00:04.8]} 65. Re7 {[%clk 0:00:12.3]} 65... Kf6 {[%clk 0:00:05.3]} 66. Rh7
{[%clk 0:00:11.3]} 66... Kg6 {[%clk 0:00:05.6]} 67. Re7 {[%clk 0:00:10.8]}
1/2-1/2

[Event "Late-Titled-Tuesday-Blitz-March-12-2024"]
[Site "Chess.com"]
[Date "2024.03.12"]
[Round "3"]
[White "bascheyaro"]
[Black "Msb2"]
[Result "1/2-1/2"]
[WhiteElo "2791"]
[BlackElo "3018"]
[TimeControl "180+1"]
[EndTime "14:28:23 PDT"]
[Termination "Game drawn by 50-move rule"]

1. d4 {[%clk 0:03:00.9]} 1... d5 {[%clk 0:02:59.6]} 2. c4 {[%clk 0:03:01]} 2...
e6 {[%clk 0:03:00]} 3. Nc3 {[%clk 0:03:01.4]} 3... Bb4 {[%clk 0:02:59.9]} 4. Bf4
{[%clk 0:03:01.5]} 4... dxc4 {[%clk 0:02:58.1]} 5. e3 {[%clk 0:03:01.6]} 5... b5
{[%clk 0:02:56]} 6. Qf3 {[%clk 0:03:01.6]} 6... Qd5 {[%clk 0:02:45.3]} 7. Qg3
{[%clk 0:02:53.2]} 7... Ne7 {[%clk 0:02:33.3]} 8. Qxg7 {[%clk 0:02:36.7]} 8...
Rg8 {[%clk 0:02:33.4]} 9. Qe5 {[%clk 0:02:32.6]} 9... Qxe5 {[%clk 0:02:31.7]}
10. Bxe5 {[%clk 0:02:32.1]} 10... c5 {[%clk 0:02:26.9]} 11. dxc5 {[%clk
0:02:11.9]} 11... Nbc6 {[%clk 0:02:24.8]} 12. Bd6 {[%clk 0:02:12]} 12... Nf5
{[%clk 0:02:16.6]} 13. O-O-O {[%clk 0:02:06.5]} 13... Bxc3 {[%clk 0:01:57.4]}
14. bxc3 {[%clk 0:02:07.4]} 14... Nxd6 {[%clk 0:01:57.8]} 15. cxd6 {[%clk
0:01:48.4]} 15... Bb7 {[%clk 0:01:58.1]} 16. Nf3 {[%clk 0:01:41.5]} 16... Rd8
{[%clk 0:01:57]} 17. Rg1 {[%clk 0:01:36.2]} 17... f6 {[%clk 0:01:18.9]} 18. g3
{[%clk 0:01:31.4]} 18... Ne5 {[%clk 0:01:11.6]} 19. Nd4 {[%clk 0:01:28.2]} 19...
Nf3 {[%clk 0:01:10.8]} 20. Nxf3 {[%clk 0:01:27.6]} 20... Bxf3 {[%clk 0:01:11.7]}
21. Rd2 {[%clk 0:01:25.5]} 21... Rg5 {[%clk 0:01:08.8]} 22. Bg2 {[%clk
0:00:59.2]} 22... Bxg2 {[%clk 0:01:08.9]} 23. Rxg2 {[%clk 0:00:59.8]} 23... Rd5
{[%clk 0:01:09.7]} 24. Rxd5 {[%clk 0:00:59.5]} 24... exd5 {[%clk 0:01:10.6]} 25.
f4 {[%clk 0:00:59.6]} 25... Rxd6 {[%clk 0:01:10.4]} 26. Rd2 {[%clk 0:01:00]}
26... f5 {[%clk 0:01:10.2]} 27. h3 {[%clk 0:00:51.7]} 27... h5 {[%clk 0:01:09]}
28. g4 {[%clk 0:00:48.1]} 28... fxg4 {[%clk 0:01:00.8]} 29. hxg4 {[%clk
0:00:49]} 29... hxg4 {[%clk 0:01:01.7]} 30. e4 {[%clk 0:00:49.2]} 30... Rf6
{[%clk 0:01:02]} 31. f5 {[%clk 0:00:16.6]} 31... dxe4 {[%clk 0:00:59.1]} 32. Rd4
{[%clk 0:00:16.8]} 32... Rxf5 {[%clk 0:00:51.2]} 33. Rxe4+ {[%clk 0:00:17.2]}
33... Kd7 {[%clk 0:00:51.8]} 34. Rxg4 {[%clk 0:00:17.9]} 34... Kc6 {[%clk
0:00:51.2]} 35. a4 {[%clk 0:00:18]} 35... a6 {[%clk 0:00:43]} 36. Kb2 {[%clk
0:00:17.8]} 36... Rf2+ {[%clk 0:00:39.7]} 37. Ka3 {[%clk 0:00:18]} 37... Rc2
{[%clk 0:00:40.3]} 38. Rg6+ {[%clk 0:00:16.6]} 38... Kb7 {[%clk 0:00:40.8]} 39.
axb5 {[%clk 0:00:15.8]} 39... axb5 {[%clk 0:00:41.7]} 40. Kb4 {[%clk 0:00:16]}
40... Rb2+ {[%clk 0:00:42.2]} 41. Kc5 {[%clk 0:00:16.5]} 41... Rb3 {[%clk
0:00:39.7]} 42. Rb6+ {[%clk 0:00:16.6]} 42... Kc7 {[%clk 0:00:38.2]} 43. Rxb5
{[%clk 0:00:17.1]} 43... Rxc3 {[%clk 0:00:38.9]} 44. Rb4 {[%clk 0:00:17.7]}
44... Rh3 {[%clk 0:00:37.1]} 45. Rxc4 {[%clk 0:00:18.6]} 45... Rh5+ {[%clk
0:00:37.8]} 46. Kb4+ {[%clk 0:00:19.1]} 46... Kb6 {[%clk 0:00:38.1]} 47. Rd4
{[%clk 0:00:19.3]} 47... Rg5 {[%clk 0:00:38.5]} 48. Kc3 {[%clk 0:00:19.6]} 48...
Kc5 {[%clk 0:00:38.2]} 49. Rc4+ {[%clk 0:00:20.1]} 49... Kd5 {[%clk 0:00:38.9]}
50. Rd4+ {[%clk 0:00:20.7]} 50... Ke5 {[%clk 0:00:39.6]} 51. Rc4 {[%clk
0:00:21.1]} 51... Rg3+ {[%clk 0:00:40.1]} 52. Kb4 {[%clk 0:00:21.4]} 52... Rf3
{[%clk 0:00:41]} 53. Rc5+ {[%clk 0:00:21.9]} 53... Kd6 {[%clk 0:00:41.6]} 54.
Rc4 {[%clk 0:00:22.5]} 54... Rf1 {[%clk 0:00:41.9]} 55. Rc3 {[%clk 0:00:22.9]}
55... Rb1+ {[%clk 0:00:41.5]} 56. Kc4 {[%clk 0:00:23.3]} 56... Rh1 {[%clk
0:00:42.4]} 57. Rd3+ {[%clk 0:00:23.4]} 57... Kc6 {[%clk 0:00:43.1]} 58. Rc3
{[%clk 0:00:24]} 58... Rh4+ {[%clk 0:00:43.1]} 59. Kd3+ {[%clk 0:00:24.6]} 59...
Kd5 {[%clk 0:00:43.7]} 60. Kc2 {[%clk 0:00:25.2]} 60... Kd4 {[%clk 0:00:42.1]}
61. Rd3+ {[%clk 0:00:25.4]} 61... Ke4 {[%clk 0:00:42.2]} 62. Rc3 {[%clk
0:00:26.3]} 62... Rh8 {[%clk 0:00:42.3]} 63. Rc4+ {[%clk 0:00:26.5]} 63... Ke3
{[%clk 0:00:42.9]} 64. Rc3+ {[%clk 0:00:27.4]} 64... Kd4 {[%clk 0:00:43.5]} 65.
Rd3+ {[%clk 0:00:27.8]} 65... Ke4 {[%clk 0:00:44.2]} 66. Rc3 {[%clk 0:00:28.5]}
66... Ra8 {[%clk 0:00:44.6]} 67. Rc4+ {[%clk 0:00:28.7]} 67... Kd5 {[%clk
0:00:45.2]} 68. Rc3 {[%clk 0:00:29.2]} 68... Ra2+ {[%clk 0:00:45.4]} 69. Kb3
{[%clk 0:00:29.5]} 69... Rh2 {[%clk 0:00:45.3]} 70. Rd3+ {[%clk 0:00:30.1]}
70... Kc5 {[%clk 0:00:45.6]} 71. Rc3+ {[%clk 0:00:30.7]} 71... Kb5 {[%clk
0:00:45.9]} 72. Rd3 {[%clk 0:00:31.3]} 72... Rh5 {[%clk 0:00:46]} 73. Rc3 {[%clk
0:00:31.8]} 73... Rd5 {[%clk 0:00:46]} 74. Re3 {[%clk 0:00:32]} 74... Rd4 {[%clk
0:00:46.3]} 75. Kc3 {[%clk 0:00:32.3]} 75... Rc4+ {[%clk 0:00:46.5]} 76. Kd3
{[%clk 0:00:32.6]} 76... Rc8 {[%clk 0:00:47.4]} 77. Re5+ {[%clk 0:00:33.2]}
77... Kb4 {[%clk 0:00:47.9]} 78. Re7 {[%clk 0:00:33.4]} 78... Rd8+ {[%clk
0:00:47.9]} 79. Ke4 {[%clk 0:00:33.9]} 79... Kc5 {[%clk 0:00:48.5]} 80. Rc7+
{[%clk 0:00:34.1]} 80... Kd6 {[%clk 0:00:48.8]} 81. Rc2 {[%clk 0:00:34.2]} 81...
Re8+ {[%clk 0:00:49.2]} 82. Kd3 {[%clk 0:00:34.5]} 82... Kd5 {[%clk 0:00:49.2]}
83. Rd2 {[%clk 0:00:34.4]} 83... Ra8 {[%clk 0:00:49.9]} 84. Kc3+ {[%clk
0:00:34.6]} 84... Kc5 {[%clk 0:00:50.3]} 85. Rc2 {[%clk 0:00:35.1]} 85... Rh8
{[%clk 0:00:49.5]} 86. Kd3+ {[%clk 0:00:35.1]} 86... Kd5 {[%clk 0:00:49.8]} 87.
Rd2 {[%clk 0:00:35.5]} 87... Rh3+ {[%clk 0:00:49.8]} 88. Ke2+ {[%clk 0:00:36]}
88... Ke4 {[%clk 0:00:50.4]} 89. Kd1 {[%clk 0:00:36.5]} 89... Rc3 {[%clk
0:00:49.8]} 90. Rh2 {[%clk 0:00:35.6]} 90... Rc8 {[%clk 0:00:48.7]} 91. Rh4+
{[%clk 0:00:35.6]} 91... Kf3 {[%clk 0:00:49.4]} 92. Rh3+ {[%clk 0:00:35.7]}
92... Kg4 {[%clk 0:00:49.9]} 93. Ra3 {[%clk 0:00:36.3]} 93... Rd8+ {[%clk
0:00:50.3]} 94. Ke1 {[%clk 0:00:36.6]} 94... Re8+ {[%clk 0:00:50.8]} 95. Kd1
{[%clk 0:00:37.3]} 1/2-1/2

[Event "Late-Titled-Tuesday-Blitz-March-12-2024"]
[Site "Chess.com"]
[Date "2024.03.12"]
[Round "3"]
[White "Lennis93"]
[Black "dropstoneDP"]
[Result "1/2-1/2"]
[WhiteElo "2695"]
[BlackElo "2988"]
[TimeControl "180+1"]
[EndTime "14:28:23 PDT"]
[Termination "Game drawn - insufficient material"]

1. d4 {[%clk 0:03:00.9]} 1... d5 {[%clk 0:02:56.3]} 2. Nf3 {[%clk 0:03:01]} 2...
Nf6 {[%clk 0:02:56.1]} 3. c4 {[%clk 0:03:01.2]} 3... dxc4 {[%clk 0:02:56.2]} 4.
e3 {[%clk 0:03:00.5]} 4... e6 {[%clk 0:02:55.8]} 5. Bxc4 {[%clk 0:02:59.7]} 5...
c5 {[%clk 0:02:56.1]} 6. O-O {[%clk 0:02:59.6]} 6... Nc6 {[%clk 0:02:52.6]} 7.
Qe2 {[%clk 0:02:55.7]} 7... a6 {[%clk 0:02:48]} 8. Rd1 {[%clk 0:02:55.6]} 8...
b5 {[%clk 0:02:44.5]} 9. dxc5 {[%clk 0:02:41.2]} 9... Qc7 {[%clk 0:02:43.7]} 10.
Bd3 {[%clk 0:02:34.4]} 10... Bxc5 {[%clk 0:02:33.8]} 11. a4 {[%clk 0:02:33.2]}
11... bxa4 {[%clk 0:02:32.1]} 12. Nc3 {[%clk 0:02:32.6]} 12... O-O {[%clk
0:02:29.8]} 13. Rxa4 {[%clk 0:02:30.2]} 13... Bb7 {[%clk 0:02:17.9]} 14. Bxa6
{[%clk 0:02:26.5]} 14... Bxa6 {[%clk 0:02:08.4]} 15. Rxa6 {[%clk 0:02:26]} 15...
Rxa6 {[%clk 0:02:08.7]} 16. Qxa6 {[%clk 0:02:26.5]} 16... Ne5 {[%clk 0:02:08]}
17. Nxe5 {[%clk 0:02:18.5]} 17... Qxe5 {[%clk 0:02:08.9]} 18. h3 {[%clk
0:02:16.1]} 18... h6 {[%clk 0:01:59.6]} 19. Qc6 {[%clk 0:02:04.9]} 19... Rb8
{[%clk 0:01:54]} 20. Na4 {[%clk 0:01:29.7]} 20... Bf8 {[%clk 0:01:49.9]} 21. Nc3
{[%clk 0:01:24.2]} 21... Qh5 {[%clk 0:01:24.6]} 22. Rd4 {[%clk 0:01:21]} 22...
Qa5 {[%clk 0:01:04.3]} 23. Ra4 {[%clk 0:01:18.9]} 23... Qe5 {[%clk 0:01:00.9]}
24. Ra8 {[%clk 0:01:16.7]} 24... Rxa8 {[%clk 0:00:56]} 25. Qxa8 {[%clk
0:01:17.6]} 25... Qd6 {[%clk 0:00:56.3]} 26. e4 {[%clk 0:01:03.8]} 26... Kh7
{[%clk 0:00:51.1]} 27. g3 {[%clk 0:01:01.7]} 27... Be7 {[%clk 0:00:46]} 28. Qb7
{[%clk 0:00:53.8]} 28... Kg8 {[%clk 0:00:40.4]} 29. Bf4 {[%clk 0:00:50.9]} 29...
Qb4 {[%clk 0:00:33.9]} 30. Qxb4 {[%clk 0:00:44.1]} 30... Bxb4 {[%clk 0:00:34.8]}
31. f3 {[%clk 0:00:40.1]} 31... Nd7 {[%clk 0:00:34.8]} 32. Kf2 {[%clk 0:00:33]}
32... Nb6 {[%clk 0:00:33.2]} 33. Ke2 {[%clk 0:00:33.1]} 33... Nc4 {[%clk
0:00:29.8]} 34. Bc1 {[%clk 0:00:32.5]} 34... f5 {[%clk 0:00:25.3]} 35. exf5
{[%clk 0:00:31]} 35... exf5 {[%clk 0:00:26.2]} 36. g4 {[%clk 0:00:27]} 36...
fxg4 {[%clk 0:00:24.2]} 37. fxg4 {[%clk 0:00:27.4]} 37... Kf7 {[%clk 0:00:23]}
38. Nd5 {[%clk 0:00:27.3]} 38... Bd6 {[%clk 0:00:21.5]} 39. b3 {[%clk
0:00:25.6]} 39... Na5 {[%clk 0:00:20]} 40. b4 {[%clk 0:00:24.5]} 40... Nc4
{[%clk 0:00:19.8]} 41. Bf4 {[%clk 0:00:21.4]} 41... Ke6 {[%clk 0:00:07.3]} 42.
Bxd6 {[%clk 0:00:16]} 42... Kxd6 {[%clk 0:00:07.5]} 43. Ne3 {[%clk 0:00:15.8]}
43... Nb6 {[%clk 0:00:03.1]} 44. Nf5+ {[%clk 0:00:16]} 44... Ke5 {[%clk
0:00:03.6]} 45. Nxg7 {[%clk 0:00:16.9]} 45... Nd5 {[%clk 0:00:04.1]} 46. b5
{[%clk 0:00:16.6]} 46... Nf4+ {[%clk 0:00:03.8]} 47. Kf3 {[%clk 0:00:15.9]}
47... Nxh3 {[%clk 0:00:04.3]} 48. b6 {[%clk 0:00:16]} 48... Kd6 {[%clk
0:00:04.5]} 49. Nf5+ {[%clk 0:00:09.5]} 49... Kc6 {[%clk 0:00:04.9]} 50. Nxh6
{[%clk 0:00:10.4]} 50... Kxb6 {[%clk 0:00:04.7]} 51. Nf7 {[%clk 0:00:10.5]}
51... Kc6 {[%clk 0:00:02.4]} 52. Kg3 {[%clk 0:00:10.9]} 52... Ng1 {[%clk
0:00:02.8]} 53. g5 {[%clk 0:00:11.4]} 53... Kd5 {[%clk 0:00:02.8]} 54. g6 {[%clk
0:00:11.8]} 54... Ke6 {[%clk 0:00:03.3]} 55. Kg4 {[%clk 0:00:07.3]} 55... Kf6
{[%clk 0:00:03.8]} 56. Kh5 {[%clk 0:00:03.3]} 56... Nf3 {[%clk 0:00:04.4]} 57.
Kh6 {[%clk 0:00:03.5]} 57... Nh4 {[%clk 0:00:04.9]} 58. g7 {[%clk 0:00:02.1]}
58... Nf5+ {[%clk 0:00:05.4]} 59. Kh7 {[%clk 0:00:02.6]} 59... Nxg7 {[%clk
0:00:06]} 1/2-1/2

[Event "Late-Titled-Tuesday-Blitz-March-12-2024"]
[Site "Chess.com"]
[Date "2024.03.12"]
[Round "3"]
[White "CarlosjPineror"]
[Black "KorolDimitriy75"]
[Result "0-1"]
[WhiteElo "2578"]
[BlackElo "2437"]
[TimeControl "180+1"]
[EndTime "14:28:27 PDT"]
[Termination "KorolDimitriy75 won by resignation"]

1. e4 {[%clk 0:03:00.9]} 1... c5 {[%clk 0:03:00]} 2. Nf3 {[%clk 0:03:00.9]} 2...
d6 {[%clk 0:03:00.3]} 3. d4 {[%clk 0:03:01.1]} 3... cxd4 {[%clk 0:03:01.2]} 4.
Nxd4 {[%clk 0:03:01.8]} 4... Nf6 {[%clk 0:03:01.5]} 5. Nc3 {[%clk 0:03:02.5]}
5... g6 {[%clk 0:03:02.4]} 6. Be3 {[%clk 0:03:02.6]} 6... Bg7 {[%clk 0:03:02.8]}
7. f3 {[%clk 0:03:03.3]} 7... O-O {[%clk 0:03:03]} 8. Bc4 {[%clk 0:03:03.1]}
8... Nc6 {[%clk 0:03:03]} 9. Qd2 {[%clk 0:03:03.5]} 9... Bd7 {[%clk 0:03:03.2]}
10. Bb3 {[%clk 0:03:04.1]} 10... Qa5 {[%clk 0:03:03]} 11. O-O-O {[%clk
0:03:04.1]} 11... Rfc8 {[%clk 0:03:02.6]} 12. Kb1 {[%clk 0:03:03.7]} 12... Ne5
{[%clk 0:03:02.4]} 13. Nd5 {[%clk 0:02:57.2]} 13... Qxd2 {[%clk 0:03:01.4]} 14.
Nxf6+ {[%clk 0:02:57.8]} 14... Bxf6 {[%clk 0:03:01.7]} 15. Rxd2 {[%clk
0:02:58.5]} 15... Nc4 {[%clk 0:03:00]} 16. Bxc4 {[%clk 0:02:56.7]} 16... Rxc4
{[%clk 0:03:00.9]} 17. Ne2 {[%clk 0:02:43.6]} 17... b6 {[%clk 0:02:27.9]} 18. b3
{[%clk 0:02:39]} 18... Rc7 {[%clk 0:02:17.6]} 19. Bd4 {[%clk 0:02:39.2]} 19...
Bxd4 {[%clk 0:02:07.2]} 20. Nxd4 {[%clk 0:02:37.4]} 20... b5 {[%clk 0:02:04.6]}
21. Ne2 {[%clk 0:02:29.4]} 21... Kg7 {[%clk 0:01:59.7]} 22. Kb2 {[%clk
0:02:27.8]} 22... Rac8 {[%clk 0:01:58.2]} 23. c3 {[%clk 0:02:27.8]} 23... g5
{[%clk 0:01:55.5]} 24. h3 {[%clk 0:02:27.3]} 24... h6 {[%clk 0:01:55]} 25. Rc1
{[%clk 0:02:26.7]} 25... Kf6 {[%clk 0:01:53.7]} 26. Rd4 {[%clk 0:02:01]} 26...
Rc5 {[%clk 0:01:49]} 27. Rcd1 {[%clk 0:01:51.1]} 27... Be6 {[%clk 0:01:47]} 28.
R4d2 {[%clk 0:01:45.6]} 28... Ke5 {[%clk 0:01:41.9]} 29. Rd4 {[%clk 0:01:30]}
29... a6 {[%clk 0:01:34.5]} 30. Rh1 {[%clk 0:01:21.3]} 30... Rxc3 {[%clk
0:01:25.9]} 31. Rd2 {[%clk 0:01:11.2]} 31... b4 {[%clk 0:01:12.4]} 32. h4 {[%clk
0:01:08.9]} 32... a5 {[%clk 0:01:03]} 33. hxg5 {[%clk 0:01:08.6]} 33... hxg5
{[%clk 0:01:02.9]} 34. Rhd1 {[%clk 0:01:02.8]} 34... R3c5 {[%clk 0:00:59.5]} 35.
Nc1 {[%clk 0:00:59.7]} 35... Kf6 {[%clk 0:00:53.3]} 36. Nd3 {[%clk 0:01:00.3]}
36... Rc3 {[%clk 0:00:50.4]} 37. Nc1 {[%clk 0:01:00.9]} 37... Ke5 {[%clk
0:00:46.6]} 38. Ne2 {[%clk 0:01:00.7]} 38... R3c5 {[%clk 0:00:45.1]} 39. Nc1
{[%clk 0:00:57.6]} 39... Kf6 {[%clk 0:00:43.3]} 40. Nd3 {[%clk 0:00:57.8]} 40...
Rc3 {[%clk 0:00:42.9]} 41. Nc1 {[%clk 0:00:58.3]} 41... Ke5 {[%clk 0:00:41.3]}
42. Re2 {[%clk 0:00:50.9]} 42... Kf4 {[%clk 0:00:25]} 43. Red2 {[%clk
0:00:51.1]} 43... Kg3 {[%clk 0:00:23.9]} 44. Ne2+ {[%clk 0:00:50.8]} 44... Kh2
{[%clk 0:00:20.5]} 45. Nd4 {[%clk 0:00:27.1]} 45... Re3 {[%clk 0:00:18.3]} 46.
Ne2 {[%clk 0:00:19.8]} 46... Kxg2 {[%clk 0:00:16.9]} 47. Ng1+ {[%clk 0:00:20]}
47... Kg3 {[%clk 0:00:16.5]} 48. Rf1 {[%clk 0:00:18.5]} 48... Rcc3 {[%clk
0:00:14.6]} 49. Ne2+ {[%clk 0:00:18.3]} 49... Kh3 {[%clk 0:00:13.9]} 50. Ng1+
{[%clk 0:00:14.1]} 50... Kg3 {[%clk 0:00:13.2]} 51. Rff2 {[%clk 0:00:12.2]}
51... Rcd3 {[%clk 0:00:12.2]} 52. Rg2+ {[%clk 0:00:09.5]} 52... Kf4 {[%clk
0:00:09.4]} 53. Rdf2 {[%clk 0:00:09.9]} 53... Rxf3 {[%clk 0:00:08]} 54. Nxf3
{[%clk 0:00:07.7]} 54... Rxf3 {[%clk 0:00:08.9]} 55. Rxf3+ {[%clk 0:00:08.3]}
55... Kxf3 {[%clk 0:00:09.7]} 56. Rxg5 {[%clk 0:00:09]} 56... Kxe4 {[%clk
0:00:09.1]} 57. Rxa5 {[%clk 0:00:09.9]} 57... f5 {[%clk 0:00:09]} 58. Rb5 {[%clk
0:00:10.5]} 58... f4 {[%clk 0:00:08.4]} 59. Rxb4+ {[%clk 0:00:11.4]} 59... Ke3
{[%clk 0:00:08.8]} 60. Rb7 {[%clk 0:00:08.4]} 60... Bd5 {[%clk 0:00:08.4]} 61.
Rxe7+ {[%clk 0:00:09]} 61... Be4 {[%clk 0:00:09]} 62. Rf7 {[%clk 0:00:09.2]}
62... f3 {[%clk 0:00:09.4]} 63. a4 {[%clk 0:00:09.5]} 63... f2 {[%clk
0:00:09.8]} 64. Rxf2 {[%clk 0:00:09.9]} 64... Kxf2 {[%clk 0:00:10.7]} 65. b4
{[%clk 0:00:09.8]} 65... d5 {[%clk 0:00:10.1]} 66. b5 {[%clk 0:00:08.5]} 66...
d4 {[%clk 0:00:10.1]} 67. a5 {[%clk 0:00:07.1]} 67... d3 {[%clk 0:00:10.3]} 68.
a6 {[%clk 0:00:07.5]} 68... d2 {[%clk 0:00:10.3]} 0-1